fUSD/lending_fUSD_20240404
["ID","MTS","AMOUNT","RATE_DAILY","PERIOD"]
[321454034,1712200251131,-9338.27916352,0.00051908,20]
[321454035,1712200251140,-2932.88865564,0.00051908,20]
[321454036,1712200251149,-2869.4966718,0.00051909,20]
[321454037,1712200251158,-2994.8868242,0.00051911,20]
[321454038,1712200251168,-2572.94366707,0.00051911,20]
[321454039,1712200251177,-2584.73545413,0.00051915,20]
[321454040,1712200251187,-2492.31311153,0.00051916,20]
[321454041,1712200251196,-2932.14451726,0.00051917,20]
[321454042,1712200251205,-2573.98254963,0.00051918,20]
[321454043,1712200251215,-2932.11160901,0.00051919,20]
[321454044,1712200251225,-2810.40943772,0.0005192,20]
[321454045,1712200251234,-2880.81900436,0.00051921,20]
[321454046,1712200251243,-2865.72559999,0.00051921,20]
[321454047,1712200251252,-2842.52694639,0.00051924,20]
[321454048,1712200251262,-2648.62378181,0.00051926,20]
[321454049,1712200251272,-2863.43855858,0.00051926,20]
[321454050,1712200251281,-2650.87885695,0.00051926,20]
[321454051,1712200251291,-2827.94150619,0.00051928,20]
[321454052,1712200251304,-2994.68947262,0.00051929,20]
[321454053,1712200251313,-2933.93711752,0.0005193,20]
[321454054,1712200251323,-2994.77799709,0.00051931,20]
[321454055,1712200251334,-238.86502259,0.00051931,60]
[321454056,1712200251343,-2994.48561361,0.00051933,20]
[321454057,1712200251353,-2936.06752778,0.00051933,20]
[321454058,1712200251362,-2994.46482995,0.00051934,20]
[321454059,1712200251372,-483.3383385,0.00051934,20]
[321454060,1712200251380,-2994.85701493,0.00051934,20]
[321454061,1712200251389,-2869.56084805,0.00051935,20]
[321454062,1712200251399,-2935.59738709,0.00051936,20]
[321454063,1712200251407,-197.97595336,0.00051936,60]
[321454064,1712200251417,-9358.86787232,0.00051938,20]
[321454065,1712200251427,-2010.1844564,0.00051938,20]
[321454066,1712200251436,-239.84852508,0.0005194,120]
[321454067,1712200251446,-2898.00588206,0.0005194,20]
[321454068,1712200251455,-2996.28341204,0.00051941,20]
[321454069,1712200251465,-2049.47298596,0.00051941,20]
[321454070,1712200251475,-2932.65354483,0.00051941,20]
[321454071,1712200251484,-9469.43697583,0.00051942,20]
[321454072,1712200251493,-2873.92110468,0.00051942,20]
[321454073,1712200251502,-9363.75217652,0.00051944,20]
[321454074,1712200251511,-2994.45091857,0.00051944,20]
[321454075,1712200251521,-2843.9642391,0.00051944,20]
[321454076,1712200251530,-1051.69367994,0.00051945,120]
[321454077,1712200251539,-2833.98270778,0.00051946,20]
[321454078,1712200251548,-2881.17274407,0.00051948,20]
[321454079,1712200251560,-2850.211239,0.00051948,20]
[321454080,1712200251569,-9366.19900174,0.0005195,20]
[321454081,1712200251578,-2932.82846231,0.0005195,20]
[321454082,1712200251587,-9393.51387407,0.00051952,20]
[321454083,1712200251596,-2580.62933819,0.00051952,20]
[321454084,1712200251606,-2577.71219353,0.00051954,20]
[321454085,1712200251616,-2936.52356532,0.00051955,20]
[321454086,1712200251625,-2932.39287136,0.00051959,20]
[321454087,1712200251634,-9363.9909347,0.00051961,20]
[321454088,1712200251643,-2938.63934818,0.00051962,20]
[321454089,1712200251652,-2933.83642547,0.00051964,20]
[321454090,1712200251661,-2582.71796903,0.00051964,20]
[321454091,1712200251670,-613.89346943,0.00051964,20]
[321454092,1712200251679,-9351.81004448,0.00051965,20]
[321454093,1712200251688,-2994.58077311,0.00051965,20]
[321454094,1712200251698,-487.45176979,0.00051965,20]
[321454095,1712200251707,-164.324,0.00051965,120]
[321454096,1712200251717,-2879.5990672,0.00051966,20]
[321454097,1712200251726,-2994.51513336,0.00051966,20]
[321454098,1712200251735,-2935.22669929,0.00051969,20]
[321454099,1712200251745,-9362.3936017,0.0005197,20]
[321454100,1712200251754,-2994.79853395,0.00051971,20]
[321454101,1712200251763,-2932.62849667,0.00051971,20]
[321454102,1712200251773,-2933.14443126,0.00051973,20]
[321454103,1712200251782,-2935.98045915,0.00051973,20]
[321454104,1712200251791,-9479.85233161,0.00051974,20]
[321454105,1712200251801,-2994.46715564,0.00051974,20]
[321454106,1712200251810,-2934.28026115,0.00051976,20]
[321454107,1712200251820,-2622.32597988,0.00051977,20]
[321454108,1712200251829,-2943.27298461,0.00051977,20]
[321454109,1712200251840,-2994.44209674,0.00051981,20]
[321454110,1712200251854,-2933.01803756,0.00051981,20]
[321454111,1712200251863,-2870.80214052,0.00051982,20]
[321454112,1712200251872,-2994.52723692,0.00051982,20]
[321454113,1712200251882,-2994.60284906,0.00051982,20]
[321454114,1712200251891,-488.90004022,0.00051984,20]
[321454115,1712200251901,-2393.31639375,0.00051984,20]
[321454116,1712200251910,-2831.28080653,0.00051986,20]
[321454117,1712200251920,-453.38534684,0.00051987,20]
[321454118,1712200251931,-1650.02993591,0.00051988,20]
[321454119,1712200251940,-2836.28858563,0.00051988,20]
[321454120,1712200251950,-2936.84313034,0.0005199,20]
[321454121,1712200251960,-486.23396961,0.00051991,20]
[321454122,1712200251970,-2994.64870092,0.00051994,20]
[321454123,1712200251979,-9485.00229706,0.00051995,20]
[321454124,1712200251989,-2994.77807437,0.00051996,20]
[321454125,1712200251998,-2607.87362535,0.00051996,20]
[321454126,1712200252008,-2920.15065407,0.00051997,20]
[321454127,1712200252018,-2826.93918101,0.00051997,20]
[321454128,1712200252028,-160.88854191,0.00051997,2]
[321454129,1712200252038,-2933.42093945,0.00051998,20]
[321454130,1712200252048,-2954.83771399,0.00051999,20]
[321454131,1712200252059,-98079.73238199,0.00051999,2]
[321454132,1712200252068,-2964.6096063,0.00052,120]
[321454133,1712200252076,-220000.0,0.00052,7]
[321454134,1712200252086,-150.0,0.00052,2]
[321454135,1712200252095,-150.0,0.00052,2]
[321454136,1712200252104,-800.0,0.00052,120]
[321454137,1712200252114,-150.0,0.00052,2]
[321454138,1712200252123,-150.0,0.00052,2]
[321454139,1712200252133,-391288.56798765,0.00052,120]
[321454140,1712200252143,-152.11,0.00052,7]
[321454141,1712200252154,-152.11,0.00052,7]
[321454142,1712200252164,-152.11,0.00052,7]
[321454143,1712200252174,-152.11,0.00052,7]
[321454144,1712200252183,-152.11,0.00052,7]
[321454145,1712200252193,-152.11,0.00052,7]
[321454146,1712200252202,-152.11,0.00052,7]
[321454147,1712200252211,-152.11,0.00052,7]
[321454148,1712200252221,-152.11,0.00052,7]
[321454149,1712200252231,-152.11,0.00052,7]
[321454150,1712200252240,-152.11,0.00052,7]
[321454151,1712200252250,-152.11,0.00052,7]
[321454152,1712200252260,-152.11,0.00052,7]
[321454153,1712200252270,-152.11,0.00052,7]
[321454154,1712200252279,-152.11,0.00052,7]
[321454155,1712200252288,-152.11,0.00052,7]
[321454156,1712200252297,-152.11,0.00052,7]
[321454157,1712200252308,-152.11,0.00052,7]
[321454158,1712200252317,-152.11,0.00052,7]
[321454159,1712200252326,-152.11,0.00052,7]
[321454160,1712200252336,-152.11,0.00052,7]
[321454161,1712200252345,-152.11,0.00052,7]
[321454162,1712200252354,-150.0,0.00052,2]
[321454163,1712200252364,-150.0,0.00052,2]
[321454164,1712200252373,-2951.26,0.00052,2]
[321454165,1712200252382,-150.0,0.00052,2]
[321454166,1712200252391,-153.62296114,0.00052009,60]
[321454167,1712200252400,-1100.0,0.00052016,90]
[321454168,1712200252410,-1300.0,0.00052016,90]
[321454169,1712200252419,-500.0,0.00052016,90]
[321454170,1712200252429,-510.18312938,0.00052024,60]
[321454171,1712200252439,-604.22994504,0.00052027,60]
[321454172,1712200252448,-510.18312938,0.00052047,60]
[321454173,1712200252458,-979.79,0.00052054,30]
[321454174,1712200252466,-500.0,0.00052054,120]
[321454175,1712200252475,-1000.0,0.00052055,14]
[321454176,1712200252484,-406.65,0.00052055,2]
[321454177,1712200252493,-39857.17,0.00052055,30]
[321454178,1712200252502,-160.20412195,0.00052075,60]
[321454179,1712200252511,-1226.25,0.000521,30]
[321454180,1712200252522,-1198.31,0.000521,7]
[321454181,1712200252531,-150.0,0.000521,11]
[321454182,1712200252541,-500.0,0.00052109,120]
[321454183,1712200252554,-151.0,0.0005211,120]
[321454184,1712200252565,-151.0,0.0005211,120]
[321454185,1712200252574,-1208.0,0.00052129,30]
[321454186,1712200252583,-604.22994504,0.00052131,60]
[321454187,1712200252592,-500.0,0.00052164,120]
[321454188,1712200252602,-1051.69367994,0.00052164,120]
[321454189,1712200252611,-157.64312318,0.00052177,60]
[321454190,1712200252620,-157.040411,0.00052194,112]
[321454191,1712200252630,-1000.0,0.00052216,14]
[321454192,1712200252640,-500.0,0.00052219,120]
[321454193,1712200252650,-500.0,0.00052237,5]
[321454194,1712200252659,-197.97595336,0.00052241,60]
[321454195,1712200252668,-500.0,0.00052245,5]
[321454196,1712200252677,-211.99904312,0.00052258,60]
[321454197,1712200252686,-500.0,0.00052273,120]
[321454198,1712200252695,-152.0,0.00052282,15]
[321454199,1712200252705,-388.42808272,0.00052287,60]
[321454200,1712200252714,-154.06850799,0.00052298,60]
[321454201,1712200252724,-5025.88801,0.00052315,30]
[321454202,1712200252735,-510.18312938,0.00052317,60]
[321454203,1712200252744,-154.06850799,0.00052319,60]
[321454204,1712200252754,-500.0,0.00052328,120]
[321454205,1712200252763,-1000.0,0.00052377,14]
[321454206,1712200252773,-500.0,0.00052383,120]
[321454207,1712200252782,-1051.69367994,0.00052384,120]
[321454208,1712200252791,-510.18312938,0.00052384,60]
[321454209,1712200252802,-94818.8953116,0.0005239,7]
[321454210,1712200252812,-156.17754036,0.00052395,60]
[321454211,1712200252821,-388.42808272,0.00052429,60]
[321454212,1712200252830,-150.0,0.00052433,120]
[321454213,1712200252843,-500.0,0.00052438,120]
[321454214,1712200252852,-153.43627195,0.00052452,60]
[321454215,1712200252861,-3604.0,0.00052455,10]
[321454216,1712200252871,-1039.18241491,0.00052459,4]
[321454217,1712200252881,-510.18312938,0.00052461,60]
[321454218,1712200252890,-197.97595336,0.00052484,60]
[321454219,1712200252899,-500.0,0.00052493,120]
[321454220,1712200252908,-157.040411,0.00052494,113]
[321454221,1712200252918,-154.06850799,0.00052502,60]
[321454222,1712200252928,-292.23916669,0.00052512,60]
[321454223,1712200252937,-996.62,0.0005252,2]
[321454224,1712200252946,-1000.0,0.00052538,14]
[321454225,1712200252955,-154.06850799,0.00052542,60]
[321454226,1712200252964,-500.0,0.00052547,120]
[321454227,1712200252973,-1100.0,0.00052564,90]
[321454228,1712200252982,-1300.0,0.00052564,90]
[321454229,1712200252991,-500.0,0.00052564,90]
[321454230,1712200253001,-150.0,0.000526,11]
[321454231,1712200253009,-979.79,0.00052602,30]
[321454232,1712200253019,-500.0,0.00052602,120]
[321454233,1712200253028,-2129.0,0.00052602,120]
[321454234,1712200253037,-1051.69367994,0.00052603,120]
[321454235,1712200253046,-510.18312938,0.00052629,60]
[321454236,1712200253057,-238.86502259,0.00052651,60]
[321454237,1712200253066,-500.0,0.00052657,120]
[321454238,1712200253075,-155.35899174,0.00052695,60]
[321454239,1712200253084,-1000.0,0.00052699,14]
[321454240,1712200253093,-500.0,0.00052712,120]
[321454241,1712200253102,-157.64312318,0.00052725,60]
[321454242,1712200253111,-500.0,0.00052767,120]
[321454243,1712200253120,-157.040411,0.00052794,114]
[321454244,1712200253129,-151.0,0.00052795,120]
[321454245,1712200253138,-150.0,0.00052802,7]
[321454246,1712200253147,-238.86502259,0.00052805,60]
[321454247,1712200253157,-211.99904312,0.00052821,60]
[321454248,1712200253167,-160.20412195,0.00052821,60]
[321454249,1712200253176,-1051.69367994,0.00052822,120]
[321454250,1712200253185,-153.89032083,0.0005283,60]
[321454251,1712200253194,-153.79214001,0.00052845,60]
[321454252,1712200253204,-1000.0,0.00052861,14]
[321454253,1712200253213,-388.42808272,0.00052872,60]
[321454254,1712200253222,-211.99904312,0.00052879,60]
[321454255,1712200253232,-197.97595336,0.00052879,60]
[321454256,1712200253241,-1354.89959779,0.000529,30]
[321454257,1712200253250,-163.28193336,0.000529,55]
[321454258,1712200253259,-150.0,0.00052923,7]
[321454259,1712200253268,-197.97595336,0.00052944,60]
[321454260,1712200253277,-604.22994504,0.00052963,60]
[321454261,1712200253287,-604.22994504,0.00052971,60]
[321454262,1712200253296,-160.28413083,0.00052979,60]
[321454263,1712200253306,-211.99904312,0.0005298,60]
[321454264,1712200253316,-211.99904312,0.00052998,60]
[321454265,1712200253325,-800.0,0.00053,120]
[321454266,1712200253335,-68351.37485421,0.00053,120]
[321454267,1712200253344,-100389.59231817,0.00053,90]
[321454268,1712200253354,-500.9705865,0.00053,2]
[321454269,1712200253364,-999.0,0.00053,100]
[321454270,1712200253373,-152.0,0.00053017,16]
[321454271,1712200253383,-1000.0,0.00053022,14]
[321454272,1712200253392,-154.06850799,0.00053032,60]
[321454273,1712200253401,-154.06850799,0.00053034,60]
[321454274,1712200253410,-211.99904312,0.00053041,60]
[321454275,1712200253421,-1051.69367994,0.00053041,120]
[321454276,1712200253429,-211.99904312,0.00053049,60]
[321454277,1712200253440,-156.17754036,0.00053056,60]
[321454278,1712200253449,-155.35899174,0.0005307,60]
[321454279,1712200253458,-155.35899174,0.00053072,60]
[321454280,1712200253468,-160.20412195,0.00053074,60]
[321454281,1712200253478,-388.42808272,0.00053079,60]
[321454282,1712200253487,-510.18312938,0.00053085,60]
[321454283,1712200253496,-150.0,0.000531,11]
[321454284,1712200253505,-246.77372119,0.000531,95]
[321454285,1712200253514,-388.42808272,0.00053108,60]
[321454286,1712200253523,-1500.0,0.00053111,7]
[321454287,1712200253532,-1100.0,0.00053112,90]
[321454288,1712200253542,-1300.0,0.00053112,90]
[321454289,1712200253553,-500.0,0.00053112,90]
[321454290,1712200253562,-157.64312318,0.00053116,60]
[321454291,1712200253571,-831.96,0.00053117,2]
[321454292,1712200253580,-388.42808272,0.0005312,60]
[321454293,1712200253589,-292.23916669,0.00053142,60]
[321454294,1712200253598,-979.79,0.0005315,30]
[321454295,1712200253607,-156.17754036,0.00053165,60]
[321454296,1712200253615,-1000.0,0.00053183,14]
[321454297,1712200253626,-150.0,0.00053191,7]
[321454298,1712200253635,-154.06850799,0.00053192,60]
[321454299,1712200253645,-157.040411,0.00053194,114]
[321454300,1712200253655,-1155.79,0.000532,14]
[321454301,1712200253664,-1014.0,0.000532,7]
[321454302,1712200253673,-155.34135517,0.000532,120]
[321454303,1712200253682,-155.34135517,0.000532,120]
[321454304,1712200253691,-155.34135517,0.000532,120]
[321454305,1712200253700,-155.34135517,0.000532,120]
[321454306,1712200253709,-155.34135517,0.000532,120]
[321454307,1712200253718,-153.62296114,0.00053215,60]
[321454308,1712200253727,-230.62149275,0.0005323,14]
[321454309,1712200253737,-292.23916669,0.00053232,60]
[321454310,1712200253746,-197.97595336,0.00053257,60]
[321454311,1712200253755,-1051.69367994,0.0005326,120]
[321454312,1712200253764,-604.22994504,0.00053265,60]
[321454313,1712200253773,-150.0,0.00053269,7]
[321454314,1712200253782,-155.35899174,0.00053276,60]
[321454315,1712200253792,-197.97595336,0.0005329,60]
[321454316,1712200253801,-150.0,0.00053293,7]
[321454317,1712200253810,-5859.81687495,0.000533,7]
[321454318,1712200253819,-392.369205,0.000533,32]
[321454319,1712200253829,-441.68804587,0.0005331,2]
[321454320,1712200253839,-388.42808272,0.0005331,60]
[321454321,1712200253852,-150.0,0.00053314,7]
[321454322,1712200253861,-604.22994504,0.00053341,60]
[321454323,1712200253871,-1000.0,0.00053344,14]
[321454324,1712200253880,-157.64312318,0.00053357,60]
[321454325,1712200253891,-211.99904312,0.00053359,60]
[321454326,1712200253900,-1500.0,0.00053373,7]
[321454327,1712200253909,-604.22994504,0.00053389,60]
[321454328,1712200253920,-153.89032083,0.0005339,60]
[321454329,1712200253929,-2174.58452203,0.000534,2]
[321454330,1712200253938,-238.86502259,0.00053401,60]
[321454331,1712200253948,-150.0,0.00053403,7]
[321454332,1712200253958,-150.0,0.00053405,7]
[321454333,1712200253967,-154.09026502,0.0005342,120]
[321454334,1712200253977,-154.09026502,0.0005342,120]
[321454335,1712200253986,-154.09026502,0.0005342,120]
[321454336,1712200253995,-154.09026502,0.0005342,120]
[321454337,1712200254005,-154.09026502,0.0005342,120]
[321454338,1712200254014,-154.09026502,0.0005342,120]
[321454339,1712200254023,-154.09026502,0.0005342,120]
[321454340,1712200254032,-154.09026502,0.0005342,120]
[321454341,1712200254042,-154.09026502,0.0005342,120]
[321454342,1712200254051,-154.09026502,0.0005342,120]
[321454343,1712200254064,-154.09026502,0.0005342,120]
[321454344,1712200254074,-154.09026502,0.0005342,120]
[321454345,1712200254084,-154.59,0.0005342,120]
[321454346,1712200254093,-400.70968906,0.0005342,120]
[321454347,1712200254102,-400.70968906,0.0005342,120]
[321454348,1712200254111,-400.70968906,0.0005342,120]
[321454349,1712200254120,-400.70968906,0.0005342,120]
[321454350,1712200254129,-400.70968906,0.0005342,120]
[321454351,1712200254139,-400.70968906,0.0005342,120]
[321454352,1712200254148,-400.70968906,0.0005342,120]
[321454353,1712200254157,-158.91402984,0.0005342,120]
[321454354,1712200254165,-158.91402984,0.0005342,120]
[321454355,1712200254175,-158.91402984,0.0005342,120]
[321454356,1712200254185,-158.91402984,0.0005342,120]
[321454357,1712200254194,-158.91402984,0.0005342,120]
[321454358,1712200254203,-158.91402984,0.0005342,120]
[321454359,1712200254212,-158.91402984,0.0005342,120]
[321454360,1712200254221,-158.91402984,0.0005342,120]
[321454361,1712200254230,-158.91402984,0.0005342,120]
[321454362,1712200254240,-158.91402984,0.0005342,120]
[321454363,1712200254249,-158.91402984,0.0005342,120]
[321454364,1712200254258,-158.91402984,0.0005342,120]
[321454365,1712200254266,-158.91402984,0.0005342,120]
[321454366,1712200254275,-158.91402984,0.0005342,120]
[321454367,1712200254284,-158.91402984,0.0005342,120]
[321454368,1712200254294,-159.41,0.0005342,120]
[321454369,1712200254305,-508.5998955,0.0005342,120]
[321454370,1712200254313,-508.5998955,0.0005342,120]
[321454371,1712200254322,-508.5998955,0.0005342,120]
[321454372,1712200254331,-508.5998955,0.0005342,120]
[321454373,1712200254340,-508.5998955,0.0005342,120]
[321454374,1712200254349,-508.5998955,0.0005342,120]
[321454375,1712200254358,-508.5998955,0.0005342,120]
[321454376,1712200254367,-2129.0,0.00053424,120]
[321454377,1712200254376,-211.99904312,0.00053427,60]
[321454378,1712200254385,-604.22994504,0.00053428,60]
[321454379,1712200254395,-1500.0,0.00053456,7]
[321454380,1712200254404,-351.04936,0.0005346,66]
[321454381,1712200254413,-150.0,0.00053461,7]
[321454382,1712200254422,-150.0,0.00053474,7]
[321454383,1712200254431,-1051.69367994,0.00053479,120]
[321454384,1712200254440,-151.0,0.00053479,120]
[321454385,1712200254449,-157.64312318,0.00053485,60]
[321454386,1712200254458,-292.23916669,0.00053487,60]
[321454387,1712200254468,-157.040411,0.00053494,114]
[321454388,1712200254477,-604.22994504,0.00053496,60]
[321454389,1712200254605,-398.96230863,0.000535,30]
[321454390,1712200254615,-4113.68148416,0.000535,40]
[321454391,1712200254625,-999.0,0.000535,101]
[321454392,1712200254634,-1000.0,0.00053505,14]
[321454393,1712200254643,-400.70968906,0.00053512,120]
[321454394,1712200254652,-508.5998955,0.00053512,120]
[321454395,1712200254661,-150.0,0.00053522,7]
[321454396,1712200254670,-150.0,0.00053526,7]
[321454397,1712200254680,-176.34670904,0.00053539,60]
[321454398,1712200254689,-153.43627197,0.00053544,60]
[321454399,1712200254698,-2923.05947,0.00053552,30]
[321454400,1712200254707,-514.0,0.00053561,120]
[321454401,1712200254716,-556.0,0.00053561,120]
[321454402,1712200254725,-540.0,0.00053561,120]
[321454403,1712200254735,-150.0,0.00053581,7]
[321454404,1712200254744,-150.0,0.00053583,7]
[321454405,1712200254753,-242.369205,0.000536,32]
[321454406,1712200254762,-392.369205,0.000536,32]
[321454407,1712200254771,-150.0,0.000536,11]
[321454408,1712200254781,-150.0,0.00053604,7]
[321454409,1712200254790,-197.97595336,0.00053613,60]
[321454410,1712200254800,-5025.88801,0.00053618,30]
[321454411,1712200254811,-1500.0,0.00053619,7]
[321454412,1712200254822,-150.0,0.00053636,7]
[321454413,1712200254831,-150.0,0.00053646,7]
[321454414,1712200254843,-1500.0,0.00053655,7]
[321454415,1712200254857,-1100.0,0.0005366,90]
[321454416,1712200254866,-1300.0,0.0005366,90]
[321454417,1712200254875,-509.5541918,0.0005366,90]
[321454418,1712200254886,-68923.28462012,0.0005366,2]
[321454419,1712200254896,-160.20412195,0.00053662,60]
[321454420,1712200254906,-1000.0,0.00053666,14]
[321454421,1712200254915,-166.94916546,0.00053667,60]
[321454422,1712200254926,-150.0,0.00053673,7]
[321454423,1712200254936,-351.04937,0.0005368,67]
[321454424,1712200254947,-150.0,0.00053681,7]
[321454425,1712200254956,-500.0,0.00053696,30]
[321454426,1712200254966,-514.0,0.00053698,120]
[321454427,1712200254975,-556.0,0.00053698,120]
[321454428,1712200254985,-540.0,0.00053698,120]
[321454429,1712200254994,-979.79,0.00053698,30]
[321454430,1712200255003,-1051.69367994,0.00053699,120]
[321454431,1712200255013,-7075.75,0.000537,7]
[321454432,1712200255024,-7075.75,0.000537,7]
[321454433,1712200255035,-7075.75,0.000537,7]
[321454434,1712200255047,-7075.75,0.000537,7]
[321454435,1712200255059,-7075.75,0.000537,7]
[321454436,1712200255069,-7075.75,0.000537,7]
[321454437,1712200255077,-7075.75,0.000537,7]
[321454438,1712200255086,-7075.75,0.000537,7]
[321454439,1712200255096,-7075.75,0.000537,7]
[321454440,1712200255105,-7075.75,0.000537,7]
[321454441,1712200255114,-7075.75,0.000537,7]
[321454442,1712200255124,-7075.75,0.000537,7]
[321454443,1712200255133,-7075.75,0.000537,7]
[321454444,1712200255141,-7075.75,0.000537,7]
[321454445,1712200255151,-7075.75,0.000537,7]
[321454446,1712200255160,-7075.75,0.000537,7]
[321454447,1712200255169,-7075.75,0.000537,7]
[321454448,1712200255178,-7075.75,0.000537,7]
[321454449,1712200255188,-7075.75,0.000537,7]
[321454450,1712200255197,-7075.75,0.000537,7]
[321454451,1712200255206,-150.0,0.00053708,7]
[321454452,1712200255215,-150.0,0.00053731,7]
[321454453,1712200255225,-1296.87887427,0.00053733,7]
[321454454,1712200255234,-510.18312938,0.00053745,60]
[321454455,1712200255243,-387.73758389,0.0005375,30]
[321454456,1712200255253,-428.75879949,0.0005375,7]
[321454457,1712200255262,-2923.05947,0.00053752,30]
[321454458,1712200255271,-152.0,0.00053753,17]
[321454459,1712200255281,-150.0,0.00053766,7]
[321454460,1712200255291,-150.0,0.00053766,7]
[321454461,1712200255300,-1893.58,0.0005377,90]
[321454462,1712200255311,-1893.58,0.0005377,90]
[321454463,1712200255320,-1893.58,0.0005377,90]
[321454464,1712200255329,-1893.58,0.0005377,90]
[321454465,1712200255338,-150.0,0.00053773,7]
[321454466,1712200255347,-150.0,0.00053776,7]
[321454467,1712200255356,-510.18312938,0.00053778,60]
[321454468,1712200255365,-156.17754036,0.00053787,60]
[321454469,1712200255375,-153.89032083,0.00053793,60]
[321454470,1712200255384,-157.040411,0.00053794,114]
[321454471,1712200255393,-222.020212,0.000538,30]
[321454472,1712200255402,-150.0,0.00053823,7]
[321454473,1712200255411,-800.0,0.00053824,30]
[321454474,1712200255421,-500.0,0.00053824,30]
[321454475,1712200255430,-1000.0,0.00053828,14]
[321454476,1712200255439,-150.0,0.00053831,7]
[321454477,1712200255448,-514.0,0.00053835,120]
[321454478,1712200255458,-557.0,0.00053835,120]
[321454479,1712200255467,-540.0,0.00053835,120]
[321454480,1712200255476,-151.29625457,0.0005384,60]
[321454481,1712200255486,-160.20412195,0.00053842,60]
[321454482,1712200255495,-1500.0,0.00053852,7]
[321454483,1712200255505,-604.22994504,0.00053856,60]
[321454484,1712200255514,-150.0,0.00053862,7]
[321454485,1712200255524,-150.0,0.0005387,7]
[321454486,1712200255533,-510.18312938,0.00053878,60]
[321454487,1712200255542,-5350.0,0.0005388,29]
[321454488,1712200255552,-5350.0,0.0005388,30]
[321454489,1712200255563,-5350.0,0.0005388,31]
[321454490,1712200255572,-150.0,0.00053882,7]
[321454491,1712200255582,-32167.02178988,0.00053894,7]
[321454492,1712200255591,-1280.18611275,0.000539,120]
[321454493,1712200255600,-1051.69367994,0.00053918,120]
[321454494,1712200255609,-157.64312318,0.00053927,60]
[321454495,1712200255618,-1500.0,0.0005395,7]
[321454496,1712200255628,-2923.05947,0.00053952,30]
[321454497,1712200255637,-400.70968906,0.00053953,120]
[321454498,1712200255646,-508.5998955,0.00053953,120]
[321454499,1712200255656,-514.0,0.00053972,120]
[321454500,1712200255666,-540.0,0.00053972,120]
[321454501,1712200255675,-150.0,0.00053977,7]
[321454502,1712200255685,-500.0,0.00053981,30]
[321454503,1712200255694,-150.0,0.00053981,7]
[321454504,1712200255704,-150.0,0.00053982,7]
[321454505,1712200255713,-292.23916669,0.00053987,60]
[321454506,1712200255723,-1000.0,0.00053989,14]
[321454507,1712200255733,-150.0,0.0005399,7]
[321454508,1712200255742,-150.0,0.00053993,7]
[321454509,1712200255752,-666.0,0.00053999,2]
[321454510,1712200255761,-391.54155115,0.00054,30]
[321454511,1712200255770,-295.56,0.00054,120]
[321454512,1712200255780,-806.48974473,0.00054,60]
[321454513,1712200255789,-500000.0,0.00054,2]
[321454514,1712200255799,-156.58517969,0.00054,4]
[321454515,1712200255809,-800.0,0.00054,120]
[321454516,1712200255818,-155.26632429,0.00054,4]
[321454517,1712200255827,-74781.32739099,0.00054,120]
[321454518,1712200255840,-233199.05182132,0.00054,2]
[321454519,1712200255850,-30088.70280712,0.00054,2]
[321454520,1712200255859,-242.75672194,0.00054,120]
[321454521,1712200255868,-3515.0,0.00054,120]
[321454522,1712200255878,-500.0,0.00054,60]
[321454523,1712200255888,-313.0,0.00054,60]
[321454524,1712200255897,-304.0,0.00054,60]
[321454525,1712200255907,-301.0,0.00054,60]
[321454526,1712200255916,-508.0,0.00054,60]
[321454527,1712200255927,-151.0,0.00054,120]
[321454528,1712200255937,-151.0,0.00054,120]
[321454529,1712200255946,-151.0,0.00054,120]
[321454530,1712200255956,-151.0,0.00054,120]
[321454531,1712200255966,-156.82969,0.00054,45]
[321454532,1712200255976,-354.097611,0.00054,120]
[321454533,1712200255985,-354.097611,0.00054,120]